{"text_format":"3","workbook":"xlsx","n_sheets":13,"sheets":["Začetek","Osnove","Uvod v funkcije","POVPREČJE","MIN in MAX","Datum in čas","Združevanje besedila in števil","Izjave IF","VLOOKUP","Pogojne funkcije","Čarovnik za funkcije","Napak v formulah","Več informacij"],"not_rendered":{"images":30,"defined_names":21},"read":"whole","date_system":"1900"}

{"sheet":"Začetek","index":0,"n_rows":4,"n_cols":1,"rows_kept":4}
[]
["Uvod v formule"]
["V le nekaj korakih se boste naučili ustvarjati formule in funkcije v Excelu, najzmogljivejši aplikaciji za preglednice na svetu."]
["Če se želite vrniti nazaj na vrh, pritisnite CTRL + HOME. Če želite začeti predstavitev, pritisnite CTRL + PAGE DOWN."]

{"sheet":"Osnove","index":1,"n_rows":43,"n_cols":10,"rows_kept":43}
["Osnove: matematika z Excelom"]
["V Excelu lahko seštevate, odštevate, množite in delite brez uporabe vgrajenih funkcij. Uporabiti morate le nekatere osnovne operatorje: +, -, *, /. Vse formule se začnejo z enačajem (=).\n",null,"Številke za uporabo:",null,"Operacija:","Formule:","Odgovori:"]
["Če želite sešteti, izberite celico F3, vnesite = C3+C4, nato pa pritisnite tipko Enter. \n",null,1,null,"seštevanje (+) ",null,{"$f":"C3+C4","v":3}]
["Če želite odšteti, izberite celico F4, vnesite =C3-C4, nato pa pritisnite tipko Enter. ",null,2,null,"odštevanje (-)",null,{"$f":"C3-C4","v":-1}]
["Če želite pomnožiti, izberite celico F5, vnesite =C3*C4, nato pa pritisnite tipko Enter.\n",{"$nulls":3},"množenje (*) ",null,{"$f":"C3*C4","v":2}]
["Če želite deliti, izberite celico F6, vnesite =C3/C4, nato pa pritisnite tipko Enter.\n",{"$nulls":3},"deljenje (/) ",null,{"$f":"C3/C4","v":0.5}]
["Poskusite to: spremenite številke v celicah C3 in C4 in si oglejte, kako se rezultati formule samodejno spremenijo.",{"$nulls":3},"potenciranje (^) ",null,{"$f":"C3^C4","v":1}]
["DODATNA MOŽNOST: Vrednost lahko dvignete na določeno potenco tako, da uporabite simbol (^), na primer =A1^A2. Vnesite s kombinacijo tipko Shift+6. V celico F7 vnesite =C3^C4."]
["Če želite več podrobnosti, se pomaknite nižje"]
["Naslednji korak"]
["Več informacij o formulah, celicah in obsegih"]
["Excel je sestavljen iz posameznih celic, ki so združene v vrsticah in stolpcih. Vrstice so označene s številkami, stolpci pa s črkami. Obstaja več kot 1 milijon vrstic in 16,000 stolpcev, formule pa lahko vnesete kamorkoli. \n"]
["Formule lahko vsebujejo sklice na celice, obsege sklicev na celice, operatorje in konstante. To so primeri formul:\n\n=A1+B1\n=10+20\n=SUM(A1:A10)\n\n"]
["Opazili boste, da smo v našem tretjem primeru zgoraj uporabili funkcijo SUM. Funkcija je pravzaprav vnaprej vgrajen ukaz, ki vzame vrednost ali vrednosti, jih izračuna na določen način in vrne rezultat. Funkcija SUM na primer vzame sklice na celice ali obsege celic, ki jih določite, in jih sešteje. V tem primeru vzame funkcija celice od A1 do A10 in jih sešteje. Excel ima več kot 400 funkcij, ki jih lahko preizkusite na zavihku »Formule«.\n"]
["Formule s funkcijami se začnejo z enačajem, nato pa sledi ime funkcije z argumenti (vrednosti, ki jih funkcija uporabi za izračun), obdanimi z oklepaji. \n"]
["Formulo potrdite tako, da pritisnete tipko Enter. Ko to naredite, bo formula izvedla izračun, rezultat pa bo prikazan v celici. Če si želite ogledati samo formulo, si lahko ogledate vnosno vrstico pod trakom ali pa pritisnite F2, da si v načinu za urejanje ogledate formulo v celici. Znova pritisnite tipko Enter, če želite dokončati formulo in izračunati rezultat.\n\n"]
["Nekatere razlage formul:"]
["=10+20 je formula, pri kateri sta 10 in 20 konstanti, znak + pa je operator."]
["=SUM(A1:A10) je formula, pri kateri je SUM ime funkcije, med oklepajem in zaklepajem so navedeni argumenti formule, A1:A10 pa predstavlja obseg celic za funkcijo."]
["=SUM(A1:A10;C1:C10) je formula, pri kateri je SUM ime funkcije, med oklepajem in zaklepajem so navedeni argumenti formule, A1:A10;C1:C10 pa predstavlja obseg celic, ločene z vejico, za funkcijo."]
["DOBRO JE VEDETI: Konstante so vrednosti, ki jih vnesete v celice ali formule. Ker je lahko rezultat za =10+20 enak kot za =A1+B1, uporaba konstant ni priporočljiva. Zakaj? Ker ne morete preprosto videti konstante, ne da bi izbrali celico in jo poiskali. Zaradi tega jo pozneje težko spremenite. Veliko lažje je, če postavite konstante v celice, kjer jih lahko preprosto prilagodite, in se nanje sklicujete v formulah.\n\nNa primer: Izberite rumeno celico s številom 12. Videli boste, da smo uporabili funkcijo SUM za obseg celic. Nismo vnesli »4« ali »8« neposredno v formulo. \n"]
["Prejšnji"]
["Naprej"]
["Več informacij v spletu"]
["Uporaba Excela kot kalkulatorja"]
["Pregled formul v Excelu"]
["Excelove funkcije (po kategoriji) "]
["Excelove funkcije (po abecednem vrstnem redu) "]
["Brezplačno izobraževanje o Excelu v spletu"]
{"$rows_empty":10}
[{"$nulls":9},"Vrednosti"]
[{"$nulls":9},4]
[{"$nulls":9},8]
[{"$nulls":9},{"$f":"SUM(J41:J42)","v":12}]

{"sheet":"Uvod v funkcije","index":2,"n_rows":51,"n_cols":7,"rows_kept":51}
["Uvod v funkcije"]
["Funkcije vam omogočajo izvajanje različnih opravil, kot so matematične operacije, iskanja vrednosti ali celo računanje datumov in časov. Poskusimo nekaj načinov za dodajanje vrednosti s funkcijo SUM.",null,"Sadje","Znesek",null,"Meso","Znesek"]
["V stolpcu »Znesek« za sadje (celica D7) vnesite = SUM(D3:D6) ali pa vnesite = SUM (, nato z miško izberite ta obseg in pritisnite tipko Enter. Ta funkcija sešteje vrednosti v celicah D3, D4, D5 in D6. Vaš odgovor bi moral biti 170.\n",null,"Jabolka",50,null,"Govedina",50]
["Poskusimo zdaj samodejno seštevanje. Izberite celico v stolpcu »Meso« (celica G7), nato pa izberite »Formule« > »Samodejna vsota« > izberite funkcijo SUM. Videli boste, da Excel samodejno vnese formulo namesto vas. Pritisnite tipko Enter, da jo potrdite. Funkcija Samodejna vsota vsebuje vse najbolj pogoste funkcije.\n",null,"Pomaranče",20,null,"Perutnina",30]
["Uporabite lahko tudi bližnjico na tipkovnici. Izberite celico D15, nato pa pritisnite tipko Alt = in tipko Enter. S tem samodejno vnese funkcijo SUM.",null,"Banane",60,null,"Svinjina",10]
["Če želite več podrobnosti, se pomaknite nižje",null,"Limone",40,null,"Ribe",50]
["DODATNA MOŽNOST\nPreskusite funkcijo COUNT na enega od načinov, ki ste jih že preskusili. Funkcija COUNT prešteje število celic v obsegu, ki vsebujejo številke.",null,"SUM > ",{"$f":"SUM(D3:D6)","v":170},null,"SUM > "]
["Naslednji korak"]
["Več o funkcijah",null,"Artikel","Znesek",null,"Artikel","Znesek"]
["Pomaknite se na zavihek »Formule« in pobrskajte po Knjižnici funkcij, kjer so funkcije razvrščene po kategorijah, na primer po Besedilo, Datum in ura itd. S Vstavi funkcijo boste lahko iskali funkcije po imenu in zagnali čarovnika za funkcije, ki vam lahko pomaga ustvariti formulo. \n\nKo začnete tipkati ime funkcije, potem ko ste pritisnili =, Excel zažene funkcionalnost Intellisense, ki navede vse funkcije, ki se začnejo s črkami, ki ste jih vnesli. Ko najdete želeno funkcijo, pritisnite tabulatorko in Excel bo samodejno dokončal ime funkcije ter vnesel začetni oklepaj. Prikazal bo tudi izbirne in zahtevane argumente. \n\n\n\nOglejmo si zdaj strukturo nekaterih funkcij. Funkcija SUM je strukturirana tako:",null,"Kruh",50,null,"Kruh",50]
["Če bi lahko funkcija SUM govorila, bi rekla: vrni vsoto vseh vrednosti v celicah od D35 do D38 in vseh v stolpcu H. SUM je ime funkcije, D35:D38 je argument prvega obsega, ki je skoraj vedno obvezen, pa H:H pa je argument drugega obsega, ločene z vejico. Poskusimo zdaj funkcijo, ki ne zahteva nobenega argumenta.\n",null,"Krofi",100,null,"Krofi",100]
["Funkcija TODAY vrne današnji datum. Vrednost se samodejno posodobi, ko Excel znova izračuna.",null,"Piškotki",40,null,"Piškotki",40]
["POGLEJTE TO\nIzberite te celice. Nato v spodnjem desnem kotu Excelovega okna poiščite funkcijo SUM: 170 na dnu vrstice. To se imenuje vrstica stanja in je zgolj še en način za hitro iskanje vsote in drugih podrobnosti o izbrani celici ali obsegu. ",null,"Torte",50,null,"Torte",50]
["POMEMBNA PODROBNOST\nDvokliknite to celico. Proti koncu boste opazili vrednost 100. Čeprav lahko števila vstavite v formulo na tak način, to odsvetujemo, razen če je res nujno potrebno. To je konstanta. Kaj hitro lahko pozabite, da je tam. Priporočamo, da namesto tega vzpostavite sklic na drugo celico, na primer celico F51. Tako jo boste preprosto videli in ne bo skrita v formuli. ",null,"Pite",20,null,"Pite",20]
["Več informacij v spletu",null,"SUM > ",null,null,"COUNT >"]
["Vse o funkciji SUM"]
["Uporaba Samodejna vsota za seštevanje števil"]
["Vse o funkciji COUNT"]
["Brezplačno izobraževanje o Excelu v spletu"]
["Nazaj na vrh"]
["Naslednji korak"]
{"$rows_empty":12}
[null,null,"Sadje","Znesek"]
[null,null,"Jabolka",50]
[null,null,"Pomaranče",20]
[null,null,"Banane",60]
[null,null,"Limone",40]
[null,null,"SUM > ",{"$f":"SUM(D35:D38)","v":170}]
[]
[]
[]
[]
[null,null,"Artikel","Znesek"]
[null,null,"Avtomobili",20]
[null,null,"Tovornjaki",10]
[null,null,"Kolesa",10]
[null,null,"Rolerji",40]
[]
[{"$nulls":3},"Skupaj:",null,"Dodatna vrednost","Nova skupna vsota"]
[{"$nulls":3},{"$f":"SUM(D45:D48,100)","v":180},null,100,{"$f":"SUM(D45:D48,F51)","v":180}]

{"sheet":"POVPREČJE","index":3,"n_rows":15,"n_cols":7,"rows_kept":15}
["Funkcija AVERAGE"]
["Uporabite funkcijo AVERAGE, če želite dobiti povprečno število v določenem obsegu celic.",null,"Sadje","Znesek",null,"Meso","Znesek"]
["Kliknite celico D7, nato pa uporabite samodejno vsoto, če želite dodati funkcijo AVERAGE.",null,"Jabolka",50,null,"Govedina",50]
["Zdaj izberite celico G7 in vnesite funkcijo AVERAGE, tako da vnesete  =AVERAGE(G3:G6). ",null,"Pomaranče",20,null,"Perutnina",30]
["V celici D15 lahko uporabite Samodejna vsota ali pa vnesete funkcijo AVERAGE ročno s tipkanjem. ",null,"Banane",60,null,"Svinjina",10]
["POGLEJTE TO\nIzberite kateri koli obseg števil, nato pa v vrstici stanja preverite trenutno povprečje.\n",null,"Limone",40,null,"Ribe",50]
["Aktiviranje prejšnjega lista",null,"AVERAGE >",null,null,"AVERAGE >"]
["Premik na naslednji list"]
["DODATNA MOŽNOST\nPoskusite uporabiti funkcijo MEDIAN ali MODE. \n\nS funkcijo MEDIAN boste dobili srednjo vrednost nabora podatkov, medtem ko \nboste s funkcijo MODE dobili vrednost, ki se pojavlja najpogosteje.\n",null,"Artikel","Znesek",null,"Artikel","Znesek"]
["Povezave do več informacij v spletu",null,"Kruh",50,null,"Kruh",50]
["Izberite, če želite izvedeti vse o funkciji AVERAGE v spletu",null,"Krofi",100,null,"Krofi",100]
["Izberite, če želite izvedeti vse o funkciji MEDIAN v spletu",null,"Piškotki",40,null,"Piškotki",40]
["Izberite, če želite izvedeti vse o funkciji MODE v spletu",null,"Torte",50,null,"Torte",50]
["Izberite, če želite več informacij o brezplačnem izobraževanju o Excelu v spletu",null,"Pite",20,null,"Pite",20]
[null,null,"AVERAGE >"]

{"sheet":"MIN in MAX","index":4,"n_rows":15,"n_cols":7,"rows_kept":15}
["Funkciji MIN in MAX"]
["Uporabite funkcijo MIN, če želite dobiti najmanjše število v določenem obsegu celic.",null,"Sadje","Znesek",null,"Meso","Znesek"]
["Uporabite funkcijo MAX, če želite dobiti največje število v določenem obsegu celic.",null,"Jabolka",50,null,"Govedina",50]
["Izberite celico D7, nato pa uporabite čarovnika za samodejno vsoto, če želite dodati funkcijo MIN.\n",null,"Pomaranče",20,null,"Perutnina",30]
["Zdaj izberite celico G7 in vnesite funkcijo MAX, tako da vnesete =MAX(G3:G6).\n",null,"Banane",60,null,"Svinjina",10]
["V celici D15 lahko uporabite čarovnika za samodejno vsoto ali pa vnesete funkciji MIN ali MAX ročno. \n",null,"Limone",40,null,"Ribe",50]
["Več informacij v spletu\n",null,"MIN >",null,null,"MAX >"]
["Vse o funkciji MIN"]
["Vse o funkciji MAX",null,"Artikel","Znesek",null,"Artikel","Znesek"]
["Brezplačno izobraževanje o Excelu v spletu",null,"Kruh",50,null,"Kruh",50]
["DOBRO JE VEDETI\nFunkcijo MIN ali MAX lahko uporabite z več obsegi ali vrednostmi, če želite prikazati večje ali manjše vrednosti od teh vrednosti, na primer = MIN(A1:A10;B1:B10) ali = MAX(A1:A10;B1), pri čemer B1 vsebuje mejno vrednost, kot je 10,in  v tem primeru formula nikoli ne vrne rezultata, ki je manjša od 10.\n",null,"Krofi",100,null,"Krofi",100]
[null,null,"Piškotki",40,null,"Piškotki",40]
[null,null,"Torte",50,null,"Torte",50]
[null,null,"Pite",20,null,"Pite",20]
[null,null,"MIN ali MAX >",{"$nulls":3},{"$f":"MIN(G10:G14,10)","v":10}]

{"sheet":"Datum in čas","index":5,"n_rows":47,"n_cols":6,"rows_kept":47,"merged":[[4,2,4,3],[26,2,26,3],[30,2,30,3],[44,2,44,3]]}
["Funkcije za datum"]
["Excel lahko prikaže trenutni datum, ki temelji na območnih nastavitvah računalnika. Datume lahko tudi prištevate in odštevate."]
["Oglejte si funkcijo TODAY, ki vrne današnji datum. To so žive ali spremenljive funkcije. Ko boste torej jutri odprli delovni zvezek, bo na njem jutrišnji datum. V celico D6 vnesite =TODAY(). \n"]
["Odštevanje datumov – vnesite svoj naslednji rojstni v obliki zapisa DD. MM. YY v celico D7 in si oglejte, kako vam Excel pove, čez koliko dni se bo z godil, tako da uporabi = D7-D6 v celici D8.\n"]
["Dodajanje datumov – recimo, da želite izvedeti, na kateri datum zapade določen račun in kdaj morate vrniti knjigo v knjižnico. To lahko naredite tako, da v datum dodate dneve. V celico D10 vnesite naključno število dni. V celico D11 smo dodali = D6+D10, ker smo želeli izračunati datum zapadlosti od današnjega dne.\n",null,"Funkcije za datum"]
["DOBRO JE VEDETI\nExcel ohrani datume in čase glede na število dni od 1. januar 1900. Časi so shranjeni delih dneva glede na minute. Tako je zapis 01. 01. 2017 12:30:00 dejansko shranjen kot 42736,5208. Če sta čas ali datum prikazan kot številke, ki so podobne temu zapisu, lahko pritisnete Ctrl+1 > Številka > izberete obliko zapisa za datum ali Ura. ",null,"Današnji datum:",null,null,{"$f":"IF(D6=TODAY(),\"Tu je rešitev!\",\"\")","v":""}]
["POMEMBNA PODROBNOST\nČe želite Excelu preprečiti prikazovanje negativnega števila, če še niste vnesli svojega rojstnega datuma, lahko uporabite funkcijo IF,  podobno tej: = IF(D7=\"\";\"\";D7-D6), ki pravi: »Če je D7 enaka nič, ne prikaži ničesar, sicer pokaži vrednost za D7 minus D6«.\n",null,"Vaš rojstni dan:"]
["Funkcije za čas",null,"Dni do vašega rojstnega dne:",{"$f":"D7-D6","v":0}]
["Excel lahko prikaže trenutni čas, ki temelji na območnih nastavitvah računalnika. Čase lahko tudi prištevate in odštevate. Morda boste morali spremljati število ur, ki jih je zaposleni opravil vsak teden, in izračunati njihovo plačilo in nadure.\n"]
["V celico D28 vnesite =NOW(), ki vam vrne trenutni čas, in se posodobi ob vsakem Excelovem izračunu. Če morate spremeniti obliko zapisa časa, lahko pritisnete Ctrl+1 > Številka > Ura > in izberete želeno obliko zapisa.\n",null,"Dnevi dovoljenega obdobja:"]
["Seštevanje števila ur med časi – V celico D36 smo vnesli =((D35-D32)-(D34-D33))*24, ki izračuna začetni in končni čas določene osebe, nato pa odšteje čas, ki si ga je ta oseba vzela za kosilo. *24 na koncu formule pretvori decimalni del dneva, ki ga vidi Excel, v ure. Celica mora biti oblikovana kot število. To naredite tako, da kliknete zavihek »Osnovno« > »Oblika« > »Celice« (Ctrl + 1) > »Številka« > »Številka« > 2 decimalni mesti.\n\n",null,"Rok za plačilo računa:",{"$f":"D6+D10","v":"00:00:00"}]
["Če bi ta formula lahko govorila, bi povedala: »Vzamete čas odsotnosti in ga odštejte od časa prisotnosti, nato odštejte čas odhodna na kosilo/prihoda s kosila, pomnožite to s 24, da pretvorite Excelov decimalni čas v ure«, lahko pa = ((Čas odmora - Čas v službi) - (Konec kosila - Začetek kosila))*24."]
["Prejšnji"]
["Naprej"]
["Več informacij v spletu"]
["Vse o funkciji TODAY"]
["Vse o funkciji NOW"]
["Vse o funkciji DATE"]
["Brezplačno izobraževanje o Excelu v spletu"]
{"$rows_empty":7}
[null,null,"Funkcije za čas"]
[null,null,"Trenutni čas:"]
[]
[]
[null,null,"Dnevno št. delovnih ur"]
[null,null,"Čas v službi:","08:00:00"]
[null,null,"Začetek kosila:","12:00:00"]
[null,null,"Konec kosila:","13:00:00"]
[null,null,"Čas odmora:","17:00:00"]
[null,null,"Skupno št. ur:",{"$f":"((D35-D32)-(D34-D33))*24","v":8.000000000000002}]
{"$rows_empty":8}
[null,null,"Fiksna datum in čas"]
[null,null,"Datum:","2017-09-27"]
[null,null,"Čas:","08:52:00"]

{"sheet":"Združevanje besedila in števil","index":6,"n_rows":37,"n_cols":6,"rows_kept":37,"merged":[[26,2,26,3],[30,2,30,3],[34,2,34,3]]}
["Združevanja besedila iz različnih celic"]
["V Excelu se pogosto zgodi, da želite združiti besedilo, ki je v različnih celicah. Zelo pogost je primer, ko imate imena in priimke in jih želite kombinirati po principu: ime, priimek ali ime in priimek. Na srečo je to v Excelu mogoče z znakom za »in «(&), ki ga lahko vnesete s tipkama Shift+7.\n",null,"Ime","Priimek","Priimek, ime","Polno ime"]
["V celico E3 vnesite =D3&C3, če želite združiti priimke in imena. \n",null,"Nina","Novak",{"$f":"D3&\", \"&C3","v":"Novak, Nina"},{"$f":"C3&\" \"&D3","v":"Nina Novak"}]
["MajaKoren ni videti povsem v redu. Dodati moramo vejico in presledek. To bomo naredili tako, da bomo uporabili narekovaje in z njimi ustvarili nov niz besedila. Tokrat vnesite =D3&\", \"&C3. Del formule &\", \"& omogoča združevanje vejice in presledka z besedilom v celicah.\n",null,"Anže","Sever"]
["Če želite ustvariti polno ime, bomo združili ime in priimek, vendar bomo uporabili presledek brez vejice. V celico F3 vnesite =C3&\" \"&D3.\n",null,"Jan","Horvat"]
["Če želite več podrobnosti, se pomaknite nižje",null,"Marija","Krajnc"]
["Naprej",null,"Matej","Kovač"]
["Združevanje besedila in števil",null,"Miha","Korošec"]
["Zdaj bomo z znakom & združili besedilo in števila, ne le besedila z besedilom\n\nOglejte si celice C28:D29. Vidite, da so datumi in časi v ločenih celicah? Lahko jih združite s simbolom &, kot boste videli v celicah C32:C33, vendar to ni videti povsem v redu, kajne? Na žalost Excel ne ve, kako želite oblikovati številke, zato jih razčleni do njihove najbolj osnovne oblike zapisa, ki je v tem primeru zaporedni datum. Excelu moramo jasno povedati, kako naj oblikuje številski del formule, da bo v nastalem nizu besedila prikazan tako, kot želite. To lahko naredite s funkcijo TEXT in kodo oblike zapisa.",null,"Robert","Hribar"]
["V celico C36 vnesite =C28&\" \"&TEXT(D28;\"DD. MM. YYYY\"). DD. MM. YYYY je koda oblike zapisa za Slovenijo za dan. mesec. leto, npr. 25. 09. 2017.",null,"Tina","Zupan"]
["V celico C37 vnesite=C29&\" \"&TEXT(D29;\"H:MM:SS\"). H:MM je koda oblike zapisa za Slovenijo za ure:minute dopoldan ali popoldan, kot 1:30."]
["POGLEJTE TO\nFormule, še posebej velike, so včasih težko berljive, vendar jih lahko razčlenite s presledki, na primer tako:\n\n=C28 & \" \" & TEXT(D28;\"DD. MM. YYYY\")"]
["VREDNO JE RAZISKATI\nČe ne veste, katero kodo oblike zapisa bi uporabili, lahko uporabite Ctrl+1 > Številka za poljubno oblikovanje katere koli celice. Nato izberite možnost oblikovanja po meri. Lahko kopirate kodo oblike zapisa, ki je znova prikazana v formuli."]
["Več informacij v spletu"]
["Vse o funkciji TEXT"]
["Združevanje besedila in števil"]
["Brezplačno izobraževanje o Excelu v spletu"]
{"$rows_empty":9}
[null,null,"Uporaba besedila in števil"]
[null,null,"Današnji datum:",{"$f":"TODAY()","v":"2021-10-19"}]
[null,null,"Trenutni čas:",{"$f":"NOW()","v":44488.48280752315}]
[]
[null,null,"Združevanje besedila in števil"]
[null,null,{"$f":"C28&\" \"&D28","v":"Današnji datum: 44488"}]
[null,null,{"$f":"C29&\" \"&D29","v":"Trenutni čas: 44488.4828075231"}]
[]
[null,null,"Oblikovanje besedila in števil"]
[null,null,{"$f":"C28 &\" \"& TEXT(D28,\"DD. MM. YYYY\")","v":"Današnji datum: 19. 10. 2021"}]
[null,null,{"$f":"C29&\" \"&TEXT(D29,\"H:MM:SS\")","v":"Trenutni čas: 11:35:15"}]

{"sheet":"Izjave IF","index":7,"n_rows":37,"n_cols":6,"rows_kept":37,"merged":[[7,2,7,3]]}
["Izjave IF"]
["Z izjavami IF lahko ustvarite logične primerjave med pogoji. Izjava IF običajno pomeni, da če je en pogoj resničen, naredi nekaj, sicer naredi nekaj drugega. Formule lahko vrnejo besedilo, vrednosti in celo še več izračunov."]
["V celico D9 vnesite =IF(C9=\"Jabolko\";TRUE;FALSE). Pravilen odgovor je TRUE. \n"]
["Kopirajte celice od D9 do D10. Tukaj bi moral biti odgovor FALSE, ker pomaranča ni jabolko.\n"]
["Poskusite z drugim primerom, tako da si ogledate formulo v celici D12. Začeli smo z =IF(C12<100;\"Manj kot 100\";\"Več ali enako 100\"). Kaj se zgodi, če vnesete v celico C12 število, ki je večje od 100?\n"]
["POMEMBNA PODROBNOST\nBesedi TRUE in FALSE se razlikujeta od drugih besed v Excelovih formulah, saj ju ni treba postaviti med narekovaje in Excel ju samodejno zapiše s samimi velikimi črkami. Tudi številk ni treba zapisati med narekovaje. Navadno besedilo, kot je Da ali Ne, mora biti v narekovajih, kot je prikazano tukaj: \n=IF(C9=\"Jabolko\";\"Da\";\"Ne\")"]
["Če želite več podrobnosti, se spustite dol"]
["Naprej",null,"Izjave IF"]
["Izjava IF z drugo funkcijo",null,"Jabolko"]
["Izjave IF lahko vsilijo tudi dodatne izračune, če je izpolnjen določen pogoj. Tukaj bomo ocenili celico in tako preverili, ali je treba obračunati davek od prodaje. Če je pogoj resničen, bomo davek izračunali.\n",null,"Pomaranča"]
["V celico F33 smo vnesli =IF(E33=\"Da\";F31*DavekOdProdaje;0), pri čemer smo nastavili »DavekOdProdaje« \nkot »Imenovani obseg« z vrednostjo 0,0825. Naše pomen formule je: če je rezultat v celici E33 enak »Da«, pomnoži celico F31 z »DavekOdProdaje«, sicer vrni vrednost 0.\n\nPoskusite spremeniti »Da« v »Ne« v celici E33, če si želite ogledati spremenjen rezultat izračuna."]
["Nato smo dodali izjavo IF za izračun pošiljanja, če je treba. V celici F35 boste videli =IF(E35=\"Da\";SUM(D28:D29)*1,25;0). To pomeni: »Če je rezultat v celici E35 »Da«, vzemi vsoto v stolpcu »Količina« v zgornji tabeli in jo pomnoži z 1,25, sicer vrni vrednost 0«. .\n",null,50,{"$f":"IF(C12<100,\"Manj kot 100\",\"Več ali enako 100\")","v":"Manj kot 100"}]
["Nato spremenite 1,25 v formuli v celici F35 na »Pošiljanje«. Ko začnete tipkati, bi morala Excelovo funkcija samopopravkov to narediti namesto vas. Ko se to zgodi, pritisnite tabulatorko, da vnesete rezultat. To je imenovani obseg, ki smo ga vnesli iz »Formule« > »Določi ime«. Če boste želeli kdaj koli spremeniti stroške pošiljanja, morate to naredite le na enem mestu in lahko ime »Pošiljanje« uporabite kjer koli v delovnem zvezku.\n\n"]
["DOBRO JE VEDETI\nKo ustvarite formulo, bo Excel samodejno ustvaril barvne obrobe okoli izbranih obsegov, na katere se sklicuje formula, in ustrezni obsegi v formuli bodo iste barve. To lahko preverite tako, da izberete celico F33 in pritisnite tipko F2, da uredite formulo."]
["NAMIG ZA STROKOVNJAKE\nZ imenovanimi dosegi lahko na enem mestu določite pogoje ali vrednosti in jih nato znova uporabite v celotnem delovnem zvezku. Vse imenovane obsege v tem delovnem zvezku si lahko ogledate tako, da kliknete »Formule« > »Upravitelj imen«.  Če želite več informacij, kliknite tukaj.\n"]
["Prejšnji"]
["Naprej"]
["Več informacij v spletu"]
["Vse o funkciji IF"]
["Vse o funkciji IFS"]
["Napredne izjave IF"]
["Brezplačno izobraževanje o Excelu v spletu"]
[]
[]
[]
[]
[null,null,"Artikel","Količina","Strošek","Skupaj"]
[null,null,"Pripomoček",2,{"v":9.760711585683554,"d":"9.76 €"},{"$f":"'Izjave IF'!$E$28:$E$29*'Izjave IF'!$D$28:$D$29","v":{"v":19.521423171367108,"d":"19.52 €"}}]
[null,null,"Igračka",3,{"v":3.4189202461080024,"d":"3.42 €"},{"$f":"'Izjave IF'!$E$28:$E$29*'Izjave IF'!$D$28:$D$29","v":{"v":10.256760738324008,"d":"10.26 €"}}]
[]
[{"$nulls":3},"Delna vsota",{"$f":"SUM('Izjave IF'!$E$28:$E$29)","v":{"v":13.179631831791557,"d":"13.18 €"}},{"$f":"SUM('Izjave IF'!F28:F29)","v":{"v":29.778183909691116,"d":"29.78 €"}}]
[]
[{"$nulls":3},"Prometni davek?","Da",{"$f":"IF(E33=\"Da\",F31*DavekOdProdaje,0)","v":{"v":2.456700172549517,"d":"2.46 €"}}]
[]
[{"$nulls":3},"Pošiljanje?","Da",{"$f":"IF(E35=\"Da\",SUM(D28:D29)*1.25,0)","v":{"v":6.25,"d":"6.25 €"}}]
[]
[{"$nulls":3},"Skupaj",null,{"$f":"SUM(F33,F31,F35)","v":{"v":38.48488408224063,"d":"38.48 €"}}]

{"sheet":"VLOOKUP","index":8,"n_rows":43,"n_cols":7,"rows_kept":43}
["VLOOKUP"]
["Funkcija VLOOKUP je ena od najpogosteje uporabljenih funkcij v Excelu (in ena naših najbolj priljubljenih tudi!). Funkcija VLOOKUP vam omogoča iskanje vrednosti v stolpcu na levi strani, in nato vrne informacije v drugem stolpcu na desni strani, če najde ujemanje. Funkcija VLOOKUP pravi:\n"]
[{"$f":"VLOOKUP(A1,B:C,2,FALSE)","v":{"$error":"#N/A"}}]
["Kaj želite poiskati?"]
["Če to najdete, koliko stolpcev v desno naj se prikaže vrednost?"]
["Kje želite iskati?"]
["Ali želite približno ali točno ujemanje?"]
["V celico D22 vnesite =VLOOKUP(C22;C17:D20;2;FALSE). Pravilen odgovor za jabolka je 50. Funkcija VLOOKUP je iskala jabolka, jih našla, se nato premaknila za en stolpec v desno in vrnila rezultat.\n\n"]
["Poskusite zdaj sami v razdelku »Meso« v celici G22. Dobiti morate to: =VLOOKUP(F22;F17:G20;2;FALSE).\n\n"]
["PRESKUSITE\nPoskusite izbrati druge elemente s spustnega seznama. Videli boste, da se rezultati v celicah takoj posodobijo z novimi vrednostmi."]
["Če želite več podrobnosti, se pomaknite nižje"]
["Naprej"]
["VLOOKUP in #N/A"]
["Zagotovo se boste znašli v položaju, ko funkcija VLOOKUP ne najde, kar ste od nje zahtevali, in vrne napako (#N/A). Včasih se to  zgodi, ker iskana vrednost preprosto ne obstaja, lahko pa do tega pride, ker sklic na celico še nima vrednosti.\n"]
["Če veste, da iskana vrednost obstaja, vendar želite skriti napako, če je iskana celica prazna, lahko uporabite izjavo IF. V tem primeru bomo našo obstoječo formulo za funkcijo VLOOKUP v celici D43 zapisali tako:\n\n=IF(C43=\"\";\"\";VLOOKUP(C43;C37:D41;2;FALSE))\n\nFormula pravi: če je celica C43 enaka nič (\"\"), potem ne vrni ničesar, sicer vrni rezultate funkcije VLOOKUP. Bodite pozorni na drugi zaklepaj na koncu formule. Z njim zaprete izjavo IF.\n"]
["Če niste prepričani, ali iskana vrednost obstaja, vendar želite kljub temu preprečiti pojav napake #N/A, lahko v celici G43 uporabite funkcijo za obravnavo napake, ki se imenuje IFERROR: =IFERROR(VLOOKUP(F43;F37:G41;2;FALSE),\"\"). Funkcija IFERROR pravi: če funkcija VLOOKUP vrne veljaven rezultat, potem ga prikaži, sicer ne prikaži ničesar (\"\"). Tukaj nismo prikazali ničesar (\"\"), lahko pa uporabite tudi številke (0,1, 2, itd.) ali besedilo, na primer »Formula ni pravilna«.\n",null,"Sadje","Znesek",null,"Meso","Znesek"]
["POMEMBNA PODROBNOST\nFunkcija IFERROR je znana kot okvirna rutina za obravnavo napak, kar pomeni, da prepreči morebitne napake, ki bi jih formula lahko prikazala. To lahko povzroči težave, če vam želi Excel sporočiti, da imate v formuli pravo napako, ki jo morate odpraviti.\n\nNačeloma ne smete dodajati rutin za obravnavo napak v formule,  dokler niste popolnoma prepričani, da pravilno delujejo.",null,"Jabolka",50,null,"Govedina",50]
["Prejšnji",null,"Pomaranče",20,null,"Perutnina",30]
["Naprej",null,"Banane",60,null,"Svinjina",10]
["Več informacij v spletu",null,"Limone",40,null,"Ribe",50]
["Vse o funkciji VLOOKUP"]
["Vse o funkcijah INDEX/MATCH",null,"Jabolka",null,null,"Svinjina"]
["Vse o funkciji IFERROR"]
["Uporaba vrtilnih tabel za analizo podatkov delovnega lista"]
["Brezplačno izobraževanje o Excelu v spletu"]
{"$rows_empty":9}
[null,null,"Če bi funkcija SUM v celici D42 lahko govorila, bi rekla: Seštej vrednosti v celicah D38, D39, D40 in D41."]
[null,null,"Artikel","Znesek",null,"Artikel","Znesek"]
[null,null,"Kruh",50,null,"Kruh",50]
[null,null,"Krofi",100,null,"Krofi",100]
[null,null,"Piškotki",40,null,"Piškotki",40]
[null,null,"Torte",50,null,"Torte",50]
[null,null,"Pite",20,null,"Pite",20]
[]
[{"$nulls":3},{"$f":"VLOOKUP(C43,C37:D41,2,FALSE)","v":{"$error":"#N/A"}},null,"Pecivo",{"$f":"IFERROR(VLOOKUP(F43,F37:G41,2,FALSE),\"\")","v":""}]

{"sheet":"Pogojne funkcije","index":9,"n_rows":123,"n_cols":34,"rows_kept":123}
["Pogojne funkcije - SUMIF"]
["S pogojnimi funkcijami lahko seštevate, računate povprečje, štejete ali dobite najmanjšo ali največjo vrednost v obsegu glede na dani pogoj ali pogoje, ki jih določite sami. Na primer, koliko je jabolk od vsega sadja na seznamu. Ali koliko je pomaranč vrste Florida?",null,"Sadje","Znesek",null,"Sadje","Vrsta","Znesek",{"$nulls":17},"Sadje",null,"Jabolka",null,"Pomaranče",null,"Banane",null,"Limone"]
["S funkcijo SUMIF lahko dobite seštevek v določenem obsegu glede na določen pogoja, ki ga poiščete v drugem obsegu, npr. koliko jabolk imate. Izberite celico D17 in vnesite =SUMIF(C3:C14;C17;D3:D14). Struktura funkcije SUMIF je takšna:",null,"Jabolka",50,null,"Jabolka","Fuji",50,{"$nulls":17},"Jabolka",null,"Fuji",null,"Florida",null,"Cavendish",null,"Rough"]
[{"$f":"SUMIF(C3:C14,C17,D3:D14)","v":150},null,"Pomaranče",20,null,"Pomaranče","Florida",20,{"$nulls":17},"Pomaranče",null,"Honeycrisp",null,"Navel",null,"Lady Finger",null,"Eureka"]
["Kateri obseg si želite ogledati?",null,"Banane",60,null,"Banane","Cavendish",60,{"$nulls":17},"Banane"]
["Kakšno vrednost (besedilo ali število) želite poiskati?",null,"Limone",40,null,"Limone","Rough",40,{"$nulls":17},"Limone"]
["Kakšen obseg želite sešteti za vsako ujemanje, ki ga najde formula?",null,"Jabolka",50,null,"Jabolka","Honeycrisp",50]
["Funkcija SUMIFS deluje enako kot funkcija SUMIF, vendar lahko z njo uporabite več pogojev. Tako lahko na primer v te primeru poiščete sadje in vrst in ne le sadja. Izberite celico H17 in vnesite =SUMIFS(H3:H14;F3:F14;F17;G3:G14;G17). Struktura{0> funkcije SUMIFS je takšna:<0}\n",null,"Pomaranče",20,null,"Pomaranče","Navel",20]
[{"$f":"SUMIFS(H3:H14,F3:F14,F17,G3:G14,G17)","v":20},null,"Banane",60,null,"Banane","Lady Finger",60]
["Kakšen obseg želite sešteti?",null,"Limone",40,null,"Limone","Eureka",40]
["To je prvi obseg za iskanje ujemanj",null,"Jabolka",50,null,"Jabolka","Honeycrisp",50]
["To je pogoj za prvo ujemanje",null,"Pomaranče",20,null,"Pomaranče","Navel",20]
["To je drugi obseg za iskanje ujemanj",null,"Banane",60,null,"Banane","Cavendish",60]
["To je pogoj za drugo ujemanje",null,"Limone",40,null,"Limone","Eureka",40]
["NAMIG ZA STROKOVNJAKE\nV vsaki od celic za sadje in vrsto je spustni seznam, na katerem lahko izberete različno sadje. Preizkusite ga in si oglejte, kako se formule samodejno posodobijo."]
["Če želite več podrobnosti, se pomaknite nižje",null,"Sadje","SUMIF",null,"Sadje","Vrsta","SUMIFS"]
["Naslednji korak",null,"Jabolka",null,null,"Pomaranče","Florida"]
["Pogojne funkcije - COUNTIF"]
["S funkcijama COUNTIF in COUNTIFS lahko preštejete vrednosti v obsegu na podlagi pogojev, ki jih določite. Od drugih funkcij IF in IFS se nekoliko razlikujeta, ker vsebujeta le obseg pogojev in pogoj. Ne vrednotita enega obsega in nato preverita v drugem obsegu zaradi povzemanja."]
["Izberite celico D64 in vnesite =COUNTIF(C50:C61;C64). Struktura funkcije COUNTIF je takšna:"]
[{"$f":"COUNTIF(C50:C61,C64)","v":3}]
["Kateri obseg si želite ogledati?"]
["Kakšno vrednost (besedilo ali število) želite poiskati?"]
["Funkcija COUNTIFS deluje enako kot funkcija SUMIF, vendar lahko pri njej uporabite več pogojev. Tako lahko na primer v te primeru poiščete sadje in vrst in ne le sadja. Izberite celico H64 in vnesite =COUNTIFS(F50:F61;F64;G50:G61;G64). Struktura funkcije COUNTIFS je takšna:\n"]
[{"$f":"COUNTIFS(F50:F61,F64,G50:G61,G64)","v":1}]
["To je prvi obseg, ki ga želite prešteti"]
["To je pogoj za prvo ujemanje"]
["To je drugi obseg, ki ga želite prešteti"]
["To je pogoj za drugo ujemanje"]
["Če želite več podrobnosti, se pomaknite nižje"]
["Naprej"]
["Več pogojnih funkcij"]
["Ogledali ste si že funkcije SUMIF, SUMIFS, COUNTIF in COUNTIFS. Zdaj lahko sami preizkusite še druge funkcije, kot so AVERAGEIF/S, MAXIFS, MINIFS. Ker imajo vse enako strukturo, lahko potem, ko zapišete eno formulo, preprosto le zamenjate ime funkcije z želeno. Vse funkcije, ki jih potrebujete, smo zapisali za celico E106, zato lahko kopirate/prilepite te ali pa jih poskusite zapisati sami za vajo.\n\nSUMIF \t=SUMIF(C92:C103;C106;E92:E103) \nSUMIFS \t=SUMIFS(E92:E103;C92:C103;C106;D92:D103;D106) \nAVERAGEIF \t=AVERAGEIF(C92:C103;C106;E92:E103) \nAVERAGEIFS\t=AVERAGEIFS(E92:E103;C92:C103;C106;D92:D103;D106)\nCOUNTIF \t=COUNTIF(C92:C103;C106)\nCOUNTIFS \t=COUNTIFS(C92:C103;C106;D92:D103;D106) \nMAXIFS \t=MAXIFS(E92:E103;C92:C103;C106;D92:D103;D106)\nMINIFS \t=MINIFS(E92:E103;C92:C103;C106;D92:D103;D106)"]
["Če želite več podrobnosti, se pomaknite nižje"]
["Naprej"]
["SUMIF z argumentom vrednost"]
["Tukaj je primer funkcije SUMIF, ki uporablja večje od (>) za iskanje vseh vrednosti, ki so večje od danega zneska:"]
[{"$f":"SUMIF(D118:D122,\">=50\")","v":200}]
["Povzemimo nekaj vrednosti na podlagi tega kriterija:"]
["...Preglej te celice...\n "]
["...in če je vrednost večja od 50, jo seštej.\n "]
["OPOMBA: Če opazite, da pogosto ustvarjate pogojne formule, je vrtilna tabela morda boljša rešitev. V tem članku boste našli več informacij o vrtilnih tabelah."]
["Več informacij v spletu"]
["Vse o funkciji SUMIF"]
["Vse o funkciji SUMIFS"]
["Vse o funkciji COUNTIF"]
["Vse o funkciji COUNTIFS"]
["Vse o funkciji AVERAGEIF"]
["Vse o funkciji AVERAGEIFS",null,"Sadje","Znesek",null,"Sadje","Vrsta","Znesek"]
["Vse o funkciji MINIFS",null,"Jabolka",50,null,"Jabolka","Fuji",50]
["Vse o funkciji MAXIFS",null,"Pomaranče",20,null,"Pomaranče","Florida",20]
["Ustvarite spustni seznam",null,"Banane",60,null,"Banane","Cavendish",60]
["Brezplačno izobraževanje o Excelu v spletu",null,"Limone",40,null,"Limone","Rough",40]
["Nazaj na vrh",null,"Jabolka",50,null,"Jabolka","Honeycrisp",50]
["Naprej",null,"Pomaranče",20,null,"Pomaranče","Navel",20]
[null,null,"Banane",60,null,"Banane","Lady Finger",60]
[null,null,"Limone",40,null,"Limone","Eureka",40]
[null,null,"Jabolka",50,null,"Jabolka","Honeycrisp",50]
[null,null,"Pomaranče",20,null,"Pomaranče","Navel",20]
[null,null,"Banane",60,null,"Banane","Cavendish",60]
[null,null,"Limone",40,null,"Limone","Eureka",40]
[]
[null,null,"Sadje","COUNTIF",null,"Sadje","Vrsta","COUNTIFS"]
[null,null,"Jabolka",{"$f":"COUNTIF(C50:C61,C64)","v":3},null,"Pomaranče","Florida",{"$f":"COUNTIFS(F50:F61,F64,G50:G61,G64)","v":1}]
{"$rows_empty":26}
[null,null,"Sadje","Vrsta","Znesek"]
[null,null,"Jabolka","Fuji",50]
[null,null,"Pomaranče","Florida",20]
[null,null,"Banane","Cavendish",60]
[null,null,"Limone","Rough",40]
[null,null,"Jabolka","Honeycrisp",50]
[null,null,"Pomaranče","Navel",20]
[null,null,"Banane","Lady Finger",60]
[null,null,"Limone","Eureka",40]
[null,null,"Jabolka","Honeycrisp",50]
[null,null,"Pomaranče","Navel",20]
[null,null,"Banane","Cavendish",60]
[null,null,"Limone","Eureka",40]
[]
[null,null,"Sadje","Vrsta","Preskusite"]
[null,null,"Limone","Eureka",{"$f":"AVERAGEIFS(E92:E103,C92:C103,C106,D92:D103,D106)","v":40}]
{"$rows_empty":10}
[null,null,"Element","Znesek"]
[null,null,"Kruh",50]
[null,null,"Krofi",100]
[null,null,"Piškotki",40]
[null,null,"Torte",50]
[null,null,"Pite",20]
[{"$nulls":3},{"$f":"SUMIF(D118:D122,\">=50\")","v":200}]

{"sheet":"Čarovnik za funkcije","index":10,"n_rows":14,"n_cols":4,"rows_kept":14}
["Pustite, da vas vodi čarovnik za funkcije"]
["Če poznate ime funkcije, ki jo želite uporabiti, vendar niste prepričani, kako jo ustvarite, si lahko pomagate s čarovnikom za funkcije.\n"]
["Izberite celico D10, nato se pomaknite do zavihka Formule > vstavi formulo > vnesite VLOOKUP v polje za iskanje funkcije in nato pritisnite Začni. Ko vidite, da je funkcija VLOOKUP označena, kliknite na dnu možnost V redu. Ko izberete funkcijo na seznamu, Excel prikaže njeno sintakso.\n"]
["Nato vnesite argumente funkcije v njihova ustrezna polja z besedilom. Med vnašanjem posameznega argumenta ga Excel izračuna in pokaže njegov rezultat s končnim rezultatom na dnu Ko vnesete posamezen odsek, so pogoji za vsak argument navedeni na dnu obrazca. Ko končate, pritisnite »V redu« in Excel bo vnesel formulo namesto vas.\n\n\n",null,"Sadje","Znesek"]
["POGLEJTE TO\nDobiti morate to: =VLOOKUP(C10;C5:D8;2;FALSE)",null,"Jabolka",50]
["DOBRO JE VEDETI\nSklice na celice in obsege lahko vnesete ali pa jih izberete z miško.",null,"Pomaranče",20]
["DOBRO JE VEDETI\nMed vnašanjem posameznega odseka argumenta, se na dnu obrazca nad rezultatom formule prikaže opis argumenta.\n",null,"Banane",60]
["Prejšnji",null,"Limone",40]
["Naprej"]
["Več informacij v spletu",null,"Jabolka",{"$f":"VLOOKUP(C10,C5:D8,2,FALSE)","v":50}]
["Pregled formul v Excelu"]
["Excelove funkcije (po kategoriji)"]
["Excelove funkcije (po abecednem vrstnem redu)"]
["Brezplačno izobraževanje o Excelu v spletu"]

{"sheet":"Napak v formulah","index":11,"n_rows":36,"n_cols":4,"rows_kept":36}
["Odpravljanje napak v formulah"]
["Enkrat boste naleteli na formulo z napako, ki jo bo Excel prikazal kot #ErrorName. Napake so lahko koristne, ker pokažejo, kadar kaj ne deluje pravilo, vendar pa je napake težko odpraviti. Na srečo obstaja nekaj možnosti, ki vam lahko pomagajo poiskati vir napake in jo odpraviti.\n"]
["Preverjanje napak – pomaknite se na »Formule« > »Preverjanje napak«. Odprlo se bo pogovorno okno, v katerem bo prikazan splošen vzrok za vašo določeno težavo. V celici D9 je prišlo do napake #N/A, ker v njej ni vrednosti, ki ustreza pogoju »Jabolko«. Težavo lahko odpravite tako, da uporabite obstoječo vrednost, zatrete napako s funkcijo IFERROR ali pa jo prezrete, ker veste, da bo izginila, ko boste uporabili obstoječo vrednot.\n",null,"Sadje","Znesek"]
["Če za to napako kliknete pomoč, se bo odprla tema Pomoči za to sporočilo o napaki. Če kliknete »Prikažite korake računanja«, se bo odprlo pogovorno okno za Ovrednoti formulo.\n",null,"Jabolka",50]
["Vsakič, ko kliknete »Ovrednoti«, vas bo Excel vodil skozi formule po en odsek hkrati. Na ta način sicer morda ne boste izvedeli, zakaj je prišlo do napake, boste pa videli, na katerem mestu se je to zgodilo. Od tam dalje si v temi pomoči oglejte, kje se je v vaši formuli pojavila napaka.\n",null,"Pomaranče",20]
["PRESKUSITE\nKaj je narobe tukaj? Namig: Poskušamo uporabiti funkcijo SUM za vse elemente.",null,"Banane",60]
["DOBRO JE VEDETI\nČe kliknete »Možnosti«, boste lahko nastavili pravila za takrat, ko želite napake v Excelu prikazati ali prezreti.\n",null,"Limone",40]
["Prejšnji"]
["Naprej",null,"Jabolko",{"$f":"VLOOKUP(C9,C3:D7,2,FALSE)","v":{"$error":"#N/A"}}]
["Več informacij v spletu"]
["Zaznavanje napak v formulah"]
["Kako se izogniti nedelujočim formulam"]
["Računanje posamezne ugnezdene formule"]
["Brezplačno izobraževanje o Excelu v spletu"]
{"$rows_empty":15}
[null,null,"Sadje","Znesek"]
[null,null,"Jabolka",50]
[null,null,"Pomaranče",20]
[null,null,"Banane",60]
[null,null,"Limone",40]
[]
[null,null,"Skupaj",{"$f":"sume(D31:D34)","v":{"$error":"#NAME?"}}]

{"sheet":"Več informacij","index":12,"n_rows":5,"n_cols":1,"rows_kept":5}
["Ali imate več vprašanj o Excelu?"]
["Pritisnite ALT+Q in vnesite vprašanje."]
["Nadaljujte. Lahko se izveste več še o drugih Excelovih funkcijah:"]
["skupnost: Postavite vprašanja in se povežite z drugimi ljubitelji Excela.\n"]
["Kaj je še novega?\nNaročniki na Office 365 dobijo letne posodobitve in nove funkcije.\n\n"]